Cogmind - Beta 15 @@@ ROGUE MODE // 2025.06.07 @ 21:07:57 Player: f3-rnm Result: Destroyed by Immortal with Experimental Jetlance Performance ------------- Evolutions (8) 4000 Regions Visited (26) 5200 Robots Destroyed (373) 1865 Value Destroyed (18125) 18125 Prototype IDs (46) 920 Alien Tech Used (7) 1400 Bonus (13487) 13487 TOTAL SCORE: 44997 Bonus ------- High Alert Combat Kills 2941 Follower Combat Kills 1545 Entered DSFs 500 Delivered SUBCON Basin 2000 Met Zhirov 300 Built Enhanced Grunts 300 A7 Reached Mainframe 300 Met R17 at Cetus 500 Used Core Reset Matrix 3000 Met R17 at Research 2000 Scanned by Researcher 500 Friendly Fire -399 Cogmind --------- Core Integrity 0/1450 Matter 248/300 Energy 576/576 System Corruption 5% Temperature Cool (0) Movement Walking (126) Location -2/Protoforge Parts ------- > --- POWER (3) -------- Ion-Quantum Engine > --- PROPULSION (6) --- Thunder-HC Exoskeleton > --- UTILITY (11) ----- Scrap Engine Experimental Heat Sink Experimental Heat Sink Huge Storage Unit Core Analyzer Advanced Weapon Cycler Advanced Transmission Jammer > --- WEAPON (4) ------- Experimental Jetlance > --- INVENTORY (25) --- Advanced Heat Sink Advanced Cooling System Large Storage Unit Experimental Energy Well (600) Experimental Energy Well (600) Zionite Biocell (600) High-capacity Matter Pod (200) Makeshift Terrain Scanner Quantum Capacitor Thermal Barrier Experimental EM Shield High-powered Tractor Beam Dimensional Node Initializer Subatomic Replicator Core Cannon Micro-nuke Launcher Core Stripper Peak State ------------ > --- POWER ------------ Ion-Quantum Engine > --- PROPULSION ------- Thunder-HC Exoskeleton > --- UTILITY ---------- Armored Scrap Engine Advanced Heat Sink Huge Storage Unit Experimental Energy Well Advanced Targeting Computer Core Analyzer Centrium Heavy Armor Plating Thermal Barrier Advanced Point Defense System > --- WEAPON ----------- Hpw. Thermal Construct/G Hpw. Accelerated Penetrator Con/G Sigix Broadsword > --- INVENTORY -------- Advanced Power Amplifier Advanced Heat Sink Advanced Heat Sink Advanced Cooling System Large Storage Unit Experimental Energy Well Zionite Biocell High-capacity Matter Pod Makeshift Terrain Scanner Quantum Capacitor Advanced Weapon Cycler Advanced Transmission Jammer Experimental EM Shield Advanced Force Field High-powered Tractor Beam Dimensional Node Initializer Transdimensional Reconstructor Subatomic Replicator Compact HERF Cannon Core Cannon Micro-nuke Launcher Core Stripper [Rating: 216] Favorites ----------- Power Constructs Engine Constructs Reactor Light Particle Reactor Propulsion Constructs Treads Spiked Treads Leg Constructs Wheel Armored Huge Wheel Flight Unit VTOL Module Utility Armored Scrap Engine Device Armored Scrap Engine Storage Large Storage Unit Processor Core Analyzer Hackware System Mapper Protection Gun Armor Weapon Constructs Energy Gun Constructs Energy Cannon Subdweller Beam Cannon Ballistic Gun Constructs Ballistic Cannon Battle Cannon Launcher Subdweller Shrapnel Launcher Special Weapon Remote Datajack Impact Weapon Mace Slashing Weapon Ripper Piercing Weapon Experimental Jetlance Build | -11 -10 -10 -9 -7 -7 -7 -7 -7 -6 -6 -6 -6 -6 -6 -5 -5 -5 -5 -4 -4 -4 -3 -3 -2 -2 -2 ------- Run | Yrd Mat Sub Rec Fac Low Low Zio Dee Pro Fac Ext Cet Arc Hub Fac Upp Upp Zhi Pro Fac DSF Res Tes Res Qua Frg Slots Evolved 16 | . . . . 6 . . . . . 2 . . . . 2 . . . . 2 . 2 . 2 . . Power 2 | . . . . . . . . . . 1 . . . . . . . . . . . . . 1 . . Propulsion 4 | . . . . 2 . . . . . . . . . . . . . . . 1 . 1 . . . . Utility 9 | . . . . 4 . . . . . 1 . . . . 1 . . . . 1 . 1 . 1 . . Weapon 1 | . . . . . . . . . . . . . . . 1 . . . . . . . . . . . Parts Attached 117 | 3 3 22 6 11 . 1 2 7 2 6 2 . . . 2 2 . 1 . 1 1 1 11 1 23 9 Power 6 | . . 2 1 . . . . . . 2 . . . . . . . . . . . . 1 . . . Engine 5 | . . 2 1 . . . . . . 2 . . . . . . . . . . . . . . . . Core . | . . . . . . . . . . . . . . . . . . . . . . . . . . . Reactor 1 | . . . . . . . . . . . . . . . . . . . . . . . 1 . . . Propulsion 12 | 2 3 5 1 1 . . . . . . . . . . . . . . . . . . . . . . Treads 5 | 2 . 2 1 . . . . . . . . . . . . . . . . . . . . . . . Leg . | . . . . . . . . . . . . . . . . . . . . . . . . . . . Wheel 4 | . . 3 . 1 . . . . . . . . . . . . . . . . . . . . . . Hover . | . . . . . . . . . . . . . . . . . . . . . . . . . . . Flight 3 | . 3 . . . . . . . . . . . . . . . . . . . . . . . . . Utility 69 | 1 . 4 2 6 . 1 1 5 1 2 1 . . . 2 2 . 1 . 1 1 1 10 1 19 7 Device 43 | . . . 1 2 . 1 1 2 . 2 . . . . 1 2 . 1 . . 1 1 6 . 15 7 Storage 7 | 1 . 3 . . . . . 1 . . . . . . 1 . . . . . . . 1 . . . Processor 7 | . . . . 2 . . . 1 1 . 1 . . . . . . . . . . . . 1 1 . Hackware 1 | . . . . . . . . . . . . . . . . . . . . . . . 1 . . . Protection 11 | . . 1 1 2 . . . 1 . . . . . . . . . . . 1 . . 2 . 3 . Artifact . | . . . . . . . . . . . . . . . . . . . . . . . . . . . Weapon 30 | . . 11 2 4 . . 1 2 1 2 1 . . . . . . . . . . . . . 4 2 Energy Gun 3 | . . 2 . . . . . 1 . . . . . . . . . . . . . . . . . . Energy Cannon 5 | . . 1 1 1 . . . . . . . . . . . . . . . . . . . . 2 . Ballistic Gun 2 | . . . . . . . . . . 2 . . . . . . . . . . . . . . . . Ballistic Cannon 7 | . . 5 . . . . . 1 . . 1 . . . . . . . . . . . . . . . Launcher 6 | . . 2 . 2 . . . . 1 . . . . . . . . . . . . . . . . 1 Special Weapon 1 | . . . . . . . 1 . . . . . . . . . . . . . . . . . . . Impact Weapon 3 | . . . 1 1 . . . . . . . . . . . . . . . . . . . . 1 . Slashing Weapon 2 | . . 1 . . . . . . . . . . . . . . . . . . . . . . 1 . Piercing Weapon 1 | . . . . . . . . . . . . . . . . . . . . . . . . . . 1 Special Melee Weapon . | . . . . . . . . . . . . . . . . . . . . . . . . . . . Unidentified Prototypes 32 | . . . 1 2 1 . . 4 . . 1 . . . . 1 . 2 . 1 . . 4 . 11 4 Corrupted Parts 1 | . . . . . . . . . . . . . . . . . . . . . . . . . 1 . System Corruption 1 | . . . . . . . . . . . . . . . . . . . . . . . . . 1 . Parts Lost 43 | . . 6 4 2 1 1 2 1 3 1 3 . 1 . 1 . . . 1 . 1 1 1 1 4 8 Power 7 | . . 1 1 . . 1 . . . 1 . . . . . . . . . . 1 . . . 1 1 Propulsion 5 | . . 2 2 . 1 . . . . . . . . . . . . . . . . . . . . . Utility 16 | . . . 1 . . . 2 1 1 . 1 . . . . . . . . . . 1 1 1 2 5 Weapon 15 | . . 3 . 2 . . . . 2 . 2 . 1 . 1 . . . 1 . . . . . 1 2 Highest Loss Streak 5 | . . 3 2 1 1 1 1 1 1 1 1 . 1 . 1 . . . 1 . 1 1 1 1 2 5 To Critical Strikes . | . . . . . . . . . . . . . . . . . . . . . . . . . . . Average Backups 16 | 2 6 14 12 10 14 14 14 14 13 14 12 13 15 15 17 18 17 18 21 22 24 23 23 23 23 20 Power . | . 1 . . . . . 1 1 . . . . . . . . . . . . . 1 . . . . Propulsion . | 1 2 2 1 . . . . . . . . . . . . . . . . . . . . . . . Utility 10 | . 2 5 6 7 10 10 7 7 8 9 7 8 10 10 13 15 15 16 18 18 19 18 18 19 18 13 Weapon 3 | . 1 6 5 2 3 3 5 4 3 4 4 3 4 4 3 2 1 1 1 1 2 2 2 2 2 3 Tool/Special . | . . . . . . . . . . . . . . . . . . . . . . . . . . . Unused Backups 50 | . 1 2 6 2 2 4 . 1 2 5 . . . 1 . 1 1 . . . 7 1 1 1 3 9 Power 1 | . . . . . . . . . 1 . . . . . . . . . . . . . . . . . Propulsion 6 | . 1 1 4 . . . . . . . . . . . . . . . . . . . . . . . Utility 27 | . . 1 . 1 2 4 . 1 . 3 . . . 1 . . . . . . 5 1 1 . 2 5 Weapon 14 | . . . 2 1 . . . . 1 2 . . . . . 1 1 . . . 2 . . 1 1 2 Tool/Special 2 | . . . . . . . . . . . . . . . . . . . . . . . . . . 2 Average Slot Usage (%) 62 | . 33 71 59 60 56 54 56 57 50 58 67 66 64 68 71 71 72 71 71 68 70 67 68 61 57 54 Engine 3 | . . 6 6 6 6 5 5 . . 1 2 . . . 4 5 5 4 . . . . . . . 1 Reactor 1 | . . . . . . . . . 3 3 4 6 6 1 . . . 1 5 5 4 4 4 4 2 2 Treads 6 | . . 23 19 1 . . . . . . . . . 3 4 2 . . . . . 2 . . . 3 Leg 1 | . . . . . 5 3 5 5 6 4 2 5 6 2 . . . . . . . . 1 . . . Wheel 1 | . . 3 3 7 . 2 . . . . . . . . . . . . . . . 1 . . . . Device 13 | . . . 3 10 12 16 17 11 8 15 17 18 18 18 21 24 27 26 27 25 25 26 23 19 23 18 Storage 7 | . 11 14 10 6 6 6 6 6 6 5 5 6 6 6 5 5 5 5 5 5 5 4 7 4 4 6 Processor 4 | . . . . 6 4 . . 6 6 5 11 12 12 12 11 7 5 5 5 5 5 4 4 7 8 7 Protection 2 | . . . 1 8 6 6 6 6 6 5 . . . . . . . . . 3 5 4 2 3 . 3 Energy Gun 2 | . . . . . . . . 1 1 . 3 6 7 7 13 11 7 5 8 10 8 3 2 1 6 . Energy Cannon 2 | . . . 3 3 . 2 6 . . 3 . . . . 1 . 3 5 5 5 9 . 5 7 2 . Ballistic Gun 2 | . . . . 2 2 . 2 3 . 2 3 3 6 10 5 5 5 5 4 5 . 9 8 . . 1 Ballistic Cannon 3 | . . 9 1 . 3 3 . 7 5 3 9 6 . . . 3 5 5 2 . 1 2 . 6 . 2 Impact Weapon 1 | . . . 7 2 5 4 . . . . . . . . . . . . . . . . . . . . Slashing Weapon 1 | . . 8 . . . . . . . . . . . . . . . . . . . . . . . 3 Peak Build Rating 216 | 2 6 34 35 66 69 69 83 93 88 95 101 109 106 106 115 119 119 121 121 130 131 153 165 179 211 216 Average Rating 85 | . 4 19 21 59 62 65 72 86 79 88 91 98 100 98 108 116 118 119 119 126 123 143 154 169 175 196 On Entrance 94 | . . 5 34 35 66 61 64 80 88 78 95 88 104 106 97 115 119 118 121 120 126 135 131 165 179 211 Naked Turns 17 | . 17 . . . . . . . . . . . . . . . . . . . . . . . . . Heaviest Build 219 | 5 5 211 219 46 43 47 52 51 47 64 64 66 66 66 136 138 139 139 136 143 143 136 148 150 169 180 Greatest Support 245 | 40 8 40 44 72 43 43 86 86 94 112 112 134 111 119 132 132 110 110 110 110 133 136 136 97 185 245 Greatest Overweight (x) 10 | 1 . 5 10 1 1 1 2 . . . 1 1 . . 1 1 1 1 1 1 2 1 1 1 1 1 Average Overweight (x) . | . . 2 1 . . . . . . . . . . . . . 1 1 1 1 1 . . 1 . . Largest Inventory Capacity 35 | 8 8 35 35 15 15 15 15 15 15 15 15 15 15 15 25 25 25 25 25 25 25 25 25 25 25 25 Average Capacity 20 | 5 7 25 25 15 15 15 15 15 15 15 15 15 15 15 23 25 25 25 25 25 25 25 25 25 25 25 Most Carried 35 | 5 8 35 34 15 15 15 15 15 15 15 15 15 15 15 20 20 18 20 22 24 25 25 25 25 25 25 Average Carried 18 | 2 7 21 17 12 14 14 14 14 13 14 12 13 15 14 17 18 17 18 21 22 24 24 24 24 24 23 Final Capacity 35 | 5 8 35 5 15 15 15 15 15 15 15 15 15 15 15 25 25 25 25 25 25 25 25 25 25 25 25 Final Carried 33 | 5 8 33 5 14 15 15 15 15 15 15 11 15 15 15 20 18 18 20 22 24 25 25 25 25 25 20 Scrap Engine Consumption 463 | . . . 15 31 4 17 24 8 7 27 48 16 5 21 26 2 13 5 2 6 28 31 43 28 45 11 Constructs Created 23 | . . . 3 2 . 1 1 . . 2 3 1 1 . 2 1 . . 1 . . . . 2 3 . Constructs Modified 185 | . . . 3 9 2 6 7 6 4 5 22 8 1 7 8 2 3 1 1 1 12 19 22 7 22 7 Class Distribution -------------------- 55% | Construct 16% | Mutant 12% | Hauler-Mutant 9% | Commander-Construct Dominant Class ---------------- Sprinter | -10/Materials Mutant | -10/Subcaves Hauler-Mutant | -9/Recycling Mutant | -7/Factory Construct | -7/Lower Caves Construct | -7/Lower Caves Construct | -7/Zion Construct | -7/Deep Caves Construct | -6/Proximity Caves Construct | -6/Factory Commander-Construct | -6/Extension Commander-Construct | -6/Cetus Commander-Construct | -6/Archives Commander-Construct | -6/Hub_04(d) Commander-Construct | -5/Factory Construct | -5/Upper Caves Construct | -5/Upper Caves Construct | -5/Zhirov Construct | -4/Proximity Caves Construct | -4/Factory Construct | -4/DSF Construct | -3/Research Construct | -3/Testing Construct | -2/Research Construct | -2/Quarantine Alien-Mutant | -2/Protoforge Resources | -11 -10 -10 -9 -7 -7 -7 -7 -7 -6 -6 -6 -6 -6 -6 -5 -5 -5 -5 -4 -4 -4 -3 -3 -2 -2 -2 ----------- Run | Yrd Mat Sub Rec Fac Low Low Zio Dee Pro Fac Ext Cet Arc Hub Fac Upp Upp Zhi Pro Fac DSF Res Tes Res Qua Frg Matter Collected 9387 | 199 . 1090 484 262 96 115 269 343 375 567 381 56 25 115 245 51 228 112 75 56 274 721 878 428 1599 343 Remotely . | . . . . . . . . . . . . . . . . . . . . . . . . . . . Salvage Created 17418 | . . 607 661 847 342 525 1164 378 710 709 961 166 . 167 716 125 311 111 76 79 423 1362 1428 1406 3200 944 Parts 795 | . . 43 19 38 10 10 61 24 24 25 35 5 . 10 37 8 8 . 4 6 13 62 70 76 171 36 Haulers Intercepted 4 | . . . . . . . . . . 2 . . . . . . . . . . . 1 . 1 . . Recyclers Shooed 5 | . . . 1 . . . . . . . 1 . . . 1 . . . . . . 1 . 1 . . Parts Field Recycled . | . . . . . . . . . . . . . . . . . . . . . . . . . . . Retrieved Matter . | . . . . . . . . . . . . . . . . . . . . . . . . . . . Parts Self-Destructed 48 | . . 14 . . . 1 . . 16 . . . . . . 6 8 . 3 . . . . . . . Prevented 3 | . . . . . . 2 . . 1 . . . . . . . . . . . . . . . . . Kills | -11 -10 -10 -9 -7 -7 -7 -7 -7 -6 -6 -6 -6 -6 -6 -5 -5 -5 -5 -4 -4 -4 -3 -3 -2 -2 -2 ------- Run | Yrd Mat Sub Rec Fac Low Low Zio Dee Pro Fac Ext Cet Arc Hub Fac Upp Upp Zhi Pro Fac DSF Res Tes Res Qua Frg Combat Hostiles Destroyed 268 | . . 21 10 15 3 6 8 9 19 12 14 3 . 3 10 5 7 . 4 4 11 15 20 17 42 10 Melee 11 | . . 3 . . . . . . . . . . . . . . . . . . . . . . 1 7 Guns 88 | . . 1 . 6 1 . 2 1 1 4 2 1 . 3 6 3 5 . . 1 6 8 15 . 22 . Cannons 108 | . . 14 1 4 . 4 2 8 4 6 12 2 . . . 2 2 . 4 3 5 6 3 15 10 1 AOE 40 | . . 3 9 . 2 . . . 13 2 . . . . 4 . . . . . . 1 . . 6 . Classes Destroyed 34 | . . 7 8 1 3 1 2 2 . 1 2 . . 1 . . . . . . 1 . 2 . 3 . Worker 24 | . . . 2 3 . . . . . . . . . 2 5 . . . . . . 3 4 1 1 3 Builder 9 | . . . 1 1 . . . . . . . . . . 2 . . . . . . . 1 2 2 . Tunneler 7 | . . . . 3 . . . . . 1 . . . . 1 . . . . . . 1 . 1 . . Hauler 4 | . . . . . . . . . . 2 . . . . . . . . . . . 1 . 1 . . Recycler 11 | . . . 3 2 . . . . . . 1 . . . 2 . . . . . . 3 . . . . Mechanic 1 | . . . . . . . . . . . . . . . . . . . . . . . 1 . . . Operator 3 | . . . . . . . . . . . 1 . . . . . . . . . . 2 . . . . Turret 1 | . . 1 . . . . . . . . . . . . . . . . . . . . . . . . Watcher 10 | . . . . . . . . . . . 2 1 . . . . . . . . . 1 1 2 3 . Swarmer 46 | . . 2 . 3 . . . . 1 . . . . . . 5 1 . 4 4 9 5 . 2 10 . Grunt 61 | . . 1 2 2 2 4 . . 6 6 4 . . 1 4 . 4 . . . . 5 4 6 6 4 Brawler 6 | . . . 1 . . . . . 4 . . . . . . . . . . . . . 1 . . . Duelist 4 | . . . . . 1 . . . 2 . . . . . . . 1 . . . . . . . . . Researcher 2 | . . . . . . . . . . . . . . . . . . . . . . . . . 2 . Sentry 24 | . . 1 . 6 . 1 . . 1 1 7 . . 1 2 . 1 . . . . 2 . 1 . . Demolisher 2 | . . . 2 . . . . . . . . . . . . . . . . . . . . . . . Specialist 7 | . . . . . . . . . . . . . . 1 . . . . . . 1 . 2 . 3 . Hunter 23 | . . . 1 1 . . . . 5 4 . . . . 2 . . . . . . 3 4 . 3 . Programmer 42 | . . . 2 3 . . . . 1 1 1 . . . 2 . . . . . . . 7 8 17 . Heavy 1 | . . . . . . . . . . . . . . . . . . . . . 1 . . . . . Q-Series 2 | . . . . . . . . . . . . . . . . . . . . . . . . . 2 . Behemoth 3 | . . . . . . 1 . . . . 2 . . . . . . . . . . . . . . . Cetus Guard 3 | . . . . . . . . . . . . 3 . . . . . . . . . . . . . . Hotshot 4 | . . . . . . . . . . . . . . . . . . . . . . . . . . 4 Immortal 2 | . . . . . . . . . . . . . . . . . . . . . . . . . . 2 Striker 1 | . . . . . . . . . . . . . . . . . . . . . . . 1 . . . Fortress 1 | . . . . . . . . . . . . . . . . . . . . . . . . . 1 . Protovariant G 1 | . . . . . . . . . . . . . . . . . . . . . . . 1 . . . Artisan 1 | . . 1 . . . . . . . . . . . . . . . . . . . . . . . . Cobbler 1 | . . 1 . . . . . . . . . . . . . . . . . . . . . . . . Subdweller 17 | . . 17 . . . . . . . . . . . . . . . . . . . . . . . . Scrapper 2 | . . . 2 . . . . . . . . . . . . . . . . . . . . . . . Zionite 34 | . . . . . . . 34 . . . . . . . . . . . . . . . . . . . Z-Light 6 | . . . . . . . . 6 . . . . . . . . . . . . . . . . . . Decomposer 3 | . . . . . . 3 . . . . . . . . . . . . . . . . . . . . Packrat 3 | . . . . . 3 . . . . . . . . . . . . . . . . . . . . . Samaritan 2 | . . . . . 1 . . . . . . . . . . 1 . . . . . . . . . . Tinkerer 1 | . . . . . 1 . . . . . . . . . . . . . . . . . . . . . Assembled 3 | . . . . . . . . 3 . . . . . . . . . . . . . . . . . . Thug 2 | . . . . . . . 2 . . . . . . . . . . . . . . . . . . . Savage 1 | . . . . . . . . . . . 1 . . . . . . . . . . . . . . . Butcher 1 | . . . . . . . 1 . . . . . . . . . . . . . . . . . . . Wizard 1 | . . . . . . . 1 . . . . . . . . . . . . . . . . . . . Marauder 2 | . . . . . . . 2 . . . . . . . . . . . . . . . . . . . Mutant 1 | . . . . . . . 1 . . . . . . . . . . . . . . . . . . . Best Kill Streak 16 | . . 3 11 4 3 3 16 5 9 6 4 2 . 1 11 4 4 . 4 4 5 6 6 8 13 6 Combat Bots Only 10 | . . 3 8 3 3 3 2 5 9 5 4 2 . 1 4 4 4 . 4 4 5 5 4 6 10 3 Max Kills in Single Turn 5 | . . 1 5 1 1 1 2 2 3 2 2 1 . 1 4 1 1 . 1 1 1 2 2 2 3 1 Gunslinging . | . . . . . . . . . . . . . . . . . . . . . . . . . . . Exploded 4 | . . 1 4 . 1 . . . 2 1 . . . . 4 . . . . . . 1 . . 3 . Melee 1 | . . 1 . . . . . . . . . . . . . . . . . . . . . . 1 1 Uniques/NPCs Destroyed 1 | . . . . . . . 1 . . . . . . . . . . . . . . . . . . . Imprinter (-7/Zion) Combat | -11 -10 -10 -9 -7 -7 -7 -7 -7 -6 -6 -6 -6 -6 -6 -5 -5 -5 -5 -4 -4 -4 -3 -3 -2 -2 -2 -------- Run | Yrd Mat Sub Rec Fac Low Low Zio Dee Pro Fac Ext Cet Arc Hub Fac Upp Upp Zhi Pro Fac DSF Res Tes Res Qua Frg Hostile Shots Fired 2399 | . 9 91 26 284 7 50 84 29 92 87 331 4 9 55 58 27 41 . 23 15 40 83 236 106 299 313 Missed 718 | . 5 35 3 105 1 15 27 7 28 24 103 . 7 19 15 7 17 . 5 3 10 23 72 38 88 61 Hits 1681 | . 4 56 23 179 6 35 57 22 64 63 228 4 2 36 43 20 24 . 18 12 30 60 164 68 211 252 Melee 67 | . . . . . 4 . 4 . . . . . . . . . . . . . . 3 4 . . 52 Projectile 1614 | . 4 56 23 179 2 35 53 22 64 63 228 4 2 36 43 20 24 . 18 12 30 57 160 68 211 200 AOE 4 | . . . 3 . . . . . . . . . . . . . . . . . . 1 . . . . Critical Strikes 76 | . . 2 2 . . 1 1 . 2 1 . 1 . . . . 2 . . . . 2 7 5 12 38 Part Disruptions 4 | . . . . . . . 1 . . . . . . 2 . . . . . . . . . . 1 . Damage Taken 28130 | . 56 1119 555 1832 239 379 795 612 1037 1064 1920 56 116 603 921 332 464 . 255 172 807 1291 2662 1729 3301 5813 Core 3206 | . 34 119 89 352 15 44 174 . 16 95 212 28 . 47 78 . 103 . 14 . 163 140 173 49 286 975 Absorbed by Shields 3169 | . . . . . . . . . . . 61 54 . . . . . . . . . . . . 1782 1272 Reduced by Siege Mode 180 | . . . . . . . . . . . . . . . . . . . . . . . . . . 180 Redirected to Shielding 4 | . . 4 . . . . . . . . . . . . . . . . . . . . . . . . Ignored by Resistances 2700 | . . . . . . . . . . . . . . . . . . . . . . 115 429 . 44 2112 Regen/Repaired (Parts) 12515 | . . . . 606 138 87 238 329 586 708 948 28 37 410 547 34 282 151 74 . 465 499 1598 867 2182 1701 Core Remaining (%) 58 | 100 . . 3 . . . . . 14 . . . . 55 . . . . 80 . 85 . 75 . . . Volleys Fired 1094 | . . 85 12 89 13 21 75 13 43 52 49 13 5 21 21 9 17 3 7 5 18 56 85 117 240 25 Largest 4 | . . 2 2 1 1 1 2 3 2 3 3 3 2 3 4 4 4 2 4 4 4 4 4 2 2 1 Hottest 325 | . . 113 80 80 150 150 152 200 152 119 116 128 93 174 260 242 203 106 203 195 186 198 220 110 325 300 Shots Fired 1907 | . . 148 14 89 12 22 122 37 53 100 120 25 10 61 69 34 56 6 23 20 66 211 230 123 232 24 Gun 992 | . . 23 . 38 3 . 56 13 11 33 54 13 10 61 64 27 32 . 9 15 36 165 143 20 153 13 Cannon 875 | . . 119 6 51 7 21 66 24 31 63 66 12 . . . 7 24 6 14 5 30 46 87 103 78 9 Launcher 40 | . . 6 8 . 2 1 . . 11 4 . . . . 5 . . . . . . . . . 1 2 Special . | . . . . . . . . . . . . . . . . . . . . . . . . . . . Kinetic 964 | . . 123 13 38 10 15 56 35 10 50 91 5 5 33 47 34 42 3 9 5 6 136 119 72 2 5 Thermal 707 | . . 12 1 13 . 6 66 2 32 46 29 20 5 28 17 . 14 3 14 15 48 73 82 23 141 17 Explosive 26 | . . . . . 2 1 . . 11 4 . . . . 5 . . . . . . . . . 1 2 Electromagnetic 210 | . . 13 . 38 . . . . . . . . . . . . . . . . 12 2 29 28 88 . Robot Hit Streak 22 | . . 21 7 19 6 12 11 9 7 9 9 6 3 18 8 3 7 5 2 10 6 13 7 14 22 5 Robot Miss Streak 9 | . . 2 1 4 4 5 7 7 4 5 5 3 2 3 5 5 3 1 4 1 4 4 6 4 9 7 Penetration Max 2 | . . . . . . . . 1 . 1 2 . 1 1 1 1 . . . . . 2 1 1 . . Secondary Targets 3 | . . . . . . . . . . . . . . 1 1 1 . . . . . . . . . . Max Gunslinging Chain 1 | . . . . . . . . . . . . . . 1 1 1 . . . . . . . . . . Capacitor 353 | . . . . . . . . . . . . . . . . . . . . . . . 13 105 223 12 Shots Hit Robots 1203 | . . 105 15 85 12 20 88 23 34 58 67 16 9 40 34 12 30 4 6 10 27 104 105 73 168 58 Core Hits 761 | . . 38 30 43 14 19 57 19 58 25 32 16 7 26 40 6 12 3 4 5 15 70 50 43 103 26 Critical Kills 17 | . . . . . . . 4 4 1 . . . . . . . . . . . . 1 2 2 3 . Critical Parts Destroyed 20 | . . . 1 5 . . 1 . 1 . . . . . . . . . . . . 3 3 4 2 . Critical Strikes 55 | . . 4 1 5 . . 5 5 2 . 1 2 . . . . 1 . . . . 4 5 7 7 6 Burn 2 | . . . . . . . . . . . . 2 . . . . . . . . . . . . . . Meltdown 1 | . . . . . . . . . 1 . . . . . . . . . . . . . . . . . Destroy 31 | . . . . . . . 5 5 1 . . . . . . . . . . . . 4 5 6 5 . Blast 6 | . . 3 . . . . . . . . 1 . . . . . 1 . . . . . . 1 . . Corrupt 2 | . . . . . . . . . . . . . . . . . . . . . . . . . 2 . Smash 6 | . . . 1 5 . . . . . . . . . . . . . . . . . . . . . . Sever 4 | . . 1 . . . . . . . . . . . . . . . . . . . . . . . 3 Impale 3 | . . . . . . . . . . . . . . . . . . . . . . . . . . 3 Melee Attacks 166 | . . 10 17 43 26 . . . . . . . . . . . . . . . . . . . 5 65 Kinetic 4 | . . . . . . . . . . . . . . . . . . . . . . . . . 1 3 Impact 86 | . . . 17 43 26 . . . . . . . . . . . . . . . . . . . . . Slashing 61 | . . 10 . . . . . . . . . . . . . . . . . . . . . . 4 47 Piercing 15 | . . . . . . . . . . . . . . . . . . . . . . . . . . 15 Sneak Attacks 18 | . . . 6 6 3 . . . . . . . . . . . . . . . . . . . . 3 Combat Hostiles . | . . . . . . . . . . . . . . . . . . . . . . . . . . . Follow-up Attacks . | . . . . . . . . . . . . . . . . . . . . . . . . . . . Damage Inflicted 48312 | . . 2537 1698 2081 586 643 2112 659 2953 2637 2670 486 201 1147 2381 428 1081 163 146 334 874 3527 3730 3317 7930 3991 Guns 18357 | . . 303 . 667 60 . 567 183 182 602 941 201 201 1147 1209 252 743 . 27 242 546 2827 2498 267 4488 204 Cannons 18024 | . . 1451 69 669 128 643 1545 476 628 1614 1729 285 . . . 176 338 163 119 92 328 520 1232 2929 2124 766 Explosions 7447 | . . 523 1238 . 213 . . . 2143 421 . . . . 1172 . . . . . . 180 . 121 1119 317 Melee 4484 | . . 260 391 745 185 . . . . . . . . . . . . . . . . . . . 199 2704 Ramming . | . . . . . . . . . . . . . . . . . . . . . . . . . . . Kinetic 18206 | . . 1906 1307 667 188 363 567 615 122 739 2219 74 83 619 1040 428 865 115 50 40 69 1964 1909 2002 46 209 Thermal 15600 | . . 224 . 259 . 280 1545 44 688 1565 451 412 118 528 189 . 216 48 96 294 661 1563 1198 229 4188 804 Explosive 5398 | . . . . . 213 . . . 2143 333 . . . . 1152 . . . . . . . . 121 1119 317 Electromagnetic 4667 | . . 147 . 410 . . . . . . . . . . . . . . . . 144 . 623 965 2378 . Impact 1321 | . . . 391 745 185 . . . . . . . . . . . . . . . . . . . . . Slashing 2771 | . . 260 . . . . . . . . . . . . . . . . . . . . . . 199 2312 Piercing 349 | . . . . . . . . . . . . . . . . . . . . . . . . . . 349 Highest Corruption 38 | . 2 2 2 3 3 3 4 4 5 . . . . 1 1 1 1 1 1 . . 4 18 8 38 5 Average Corruption 4 | . 2 2 2 2 3 3 3 4 4 . . . . 1 1 1 1 1 1 . . 4 9 5 20 4 Corruption Purged . | . . . . . . . . . . . . . . . . . . . . . . . . . . . Corruption Blocked . | . . . . . . . . . . . . . . . . . . . . . . . . . . . Effects 450 | . 2 57 47 18 28 30 32 20 13 . . . . 1 4 . 4 1 4 . . 10 51 17 93 18 Message Errors 127 | . 1 10 14 3 7 10 11 5 5 . . . . 1 2 . 3 . 1 . . 2 12 5 30 5 Matter Fused 105 | . . 21 11 4 7 11 7 3 1 . . . . . . . . . . . . 2 11 5 16 6 Heat Flow Errors 45 | . . 6 5 3 2 2 4 2 3 . . . . . . . . 1 . . . 1 4 3 8 1 Energy Discharges 56 | . . 7 6 4 3 1 4 2 1 . . . . . 2 . 1 . 1 . . 2 9 . 9 4 Parts Rejected 4 | . . . . . . 1 . . 1 . . . . . . . . . . . . . 1 . 1 . Parts Fused 5 | . . . 1 2 . . . . . . . . . . . . . . . . . . . . 2 . Data Loss (minor) 55 | . 1 5 7 1 5 1 5 5 2 . . . . . . . . . 2 . . 2 8 3 8 . Data Loss (major) 23 | . . 4 3 1 2 2 1 2 . . . . . . . . . . . . . . 2 . 5 1 Misfires 2 | . . 1 . . . 1 . . . . . . . . . . . . . . . . . . . . Alerts 9 | . . 2 . . 1 1 . 1 . . . . . . . . . . . . . . 2 . 2 . Misdirections 1 | . . . . . . . . . . . . . . . . . . . . . . . . . 1 . Weapon Failures 18 | . . 1 . . 1 . . . . . . . . . . . . . . . . 1 2 1 11 1 Overload Shots . | . . . . . . . . . . . . . . . . . . . . . . . . . . . Overflow Damage 1410 | . . 8 200 307 90 17 4 . 32 178 38 . . . . 13 18 22 . . . 10 47 143 236 47 Projectiles 634 | . . 7 . . 18 17 4 . 24 178 38 . . . . 13 18 22 . . . 10 47 77 161 . Explosions 209 | . . 1 63 . . . . . 8 . . . . . . . . . . . . . . 66 71 . Melee 567 | . . . 137 307 72 . . . . . . . . . . . . . . . . . . . 4 47 Knockbacks 82 | . . 13 4 4 1 5 . 12 2 2 2 . . . . . 4 2 . . . 11 2 17 . 1 Impact 7 | . . . 2 4 1 . . . . . . . . . . . . . . . . . . . . . Kinetic 67 | . . 13 2 . . 5 . 9 2 2 2 . . . . . 3 1 . . . 9 2 16 . 1 Secondary 8 | . . . . . . . . 3 . . . . . . . . 1 1 . . . 2 . 1 . . Self-Inflicted Damage 295 | . . 10 30 . 60 23 . . . . . . . . 51 . . . . . . . . 121 . . Shots 9 | . . 1 3 . 2 1 . . . . . . . . 1 . . . . . . . . 1 . . Rammed . | . . . . . . . . . . . . . . . . . . . . . . . . . . . Targets Rammed . | . . . . . . . . . . . . . . . . . . . . . . . . . . . Kicked . | . . . . . . . . . . . . . . . . . . . . . . . . . . . Crushed . | . . . . . . . . . . . . . . . . . . . . . . . . . . . Highest Temperature 444 | . . 250 275 324 183 129 348 444 165 195 294 24 2 344 . 12 65 104 56 . 20 9 226 69 216 376 Average Temperature 85 | . . 89 77 98 63 31 96 193 43 64 108 11 2 79 . 12 33 70 33 . 12 9 89 32 94 194 Received Heat Transfer 3629 | . 30 162 145 351 18 135 141 209 72 189 555 . 9 24 90 9 229 . . . . 84 348 54 48 727 Effects 5 | . . . . . . . 1 4 . . . . . . . . . . . . . . . . . . Shutdowns 1 | . . . . . . . . 1 . . . . . . . . . . . . . . . . . . Energy Bleed 2 | . . . . . . . 1 1 . . . . . . . . . . . . . . . . . . Matter Decay 1 | . . . . . . . . 1 . . . . . . . . . . . . . . . . . . Damage (minor) 1 | . . . . . . . . 1 . . . . . . . . . . . . . . . . . . Siege Activations 1 | . . . . . . . . . . . . . . . . . . . . . . . . . . 1 Total Turns 41 | . . . . . . . . . . . . . . . . . . . . . . . . . . 41 Longest Duration 41 | . . . . . . . . . . . . . . . . . . . . . . . . . . 41 Martial Activations 1 | . . . . . . . . . . . 1 . . . . . . . . . . . . . . . Total Turns 7 | . . . . . . . . . . . 7 . . . . . . . . . . . . . . . Longest Duration 7 | . . . . . . . . . . . 7 . . . . . . . . . . . . . . . Shielding Activations . | . . . . . . . . . . . . . . . . . . . . . . . . . . . Robots Disrupted 1 | . . . . . . . . . . . . . . . . . . . . . . . . . 1 . Combat Hostiles 1 | . . . . . . . . . . . . . . . . . . . . . . . . . 1 . Robots Corrupted 21 | . . . 2 9 1 . . . . . . . . . . . . . . . . . 3 2 4 . Combat Hostiles 10 | . . . . 4 . . . . . . . . . . . . . . . . . . 2 2 2 . Parts Fried 29 | . . . . 5 . . . . . . . . . . . . . . . . . . 5 4 15 . Impact Corruptions 19 | . . . 4 12 2 . . . . . . . . . . . . . . . . . . 1 . . Robots Melted 8 | . . . . 1 . 2 4 . 1 . . . . . . . . . . . . . . . . . Combat Hostiles 8 | . . . . 1 . 2 4 . 1 . . . . . . . . . . . . . . . . . Parts Melted 47 | . . . . 6 . 5 28 . . 2 1 . . . . . . . 1 1 1 1 1 . . . Heat Transferred 19032 | . . 287 . 500 . 1200 6347 200 772 1450 666 777 148 703 87 . 350 62 200 435 1007 1419 1460 185 777 . Parts Sabotaged . | . . . . . . . . . . . . . . . . . . . . . . . . . . . Parts Stolen . | . . . . . . . . . . . . . . . . . . . . . . . . . . . Parts Stripped 39 | . . . . . . . . . . . . . . . . . . . . . . . . . 18 21 Power Chain Reactions 2 | . . 1 . . . . . . . . . . . . . . . . . . . 1 . . . . Alert | -11 -10 -10 -9 -7 -7 -7 -7 -7 -6 -6 -6 -6 -6 -6 -5 -5 -5 -5 -4 -4 -4 -3 -3 -2 -2 -2 ------- Run | Yrd Mat Sub Rec Fac Low Low Zio Dee Pro Fac Ext Cet Arc Hub Fac Upp Upp Zhi Pro Fac DSF Res Tes Res Qua Frg Maximum Alert Level 4 | . . . 1 . . . . . . 3 2 2 1 3 2 . . . . . 1 1 2 2 4 3 Low Security (%) 37 | 100 100 . 99 100 . . . . . . . . 14 11 13 . . . . 100 35 18 7 . . . Level 1 30 | . . . . . . . . . . . 75 88 85 26 52 . . . . . 64 81 72 35 16 . Level 2 13 | . . . . . . . . . . 17 24 11 . 54 34 . . . . . . . 20 64 . 32 Level 3 14 | . . . . . . . . . . 82 . . . 7 . . . . . . . . . . 49 67 Level 4 4 | . . . . . . . . . . . . . . . . . . . . . . . . . 33 . Level 5 . | . . . . . . . . . . . . . . . . . . . . . . . . . . . High Security . | . . . . . . . . . . . . . . . . . . . . . . . . . . . Max Security . | . . . . . . . . . . . . . . . . . . . . . . . . . . . Sterilizations 1 | . . . . . . . . . . . . . . . . . . . . . 1 . . . . . Peak Influence 1269 | . 45 . 207 125 . . . . . 844 536 414 291 805 668 . . . . 124 306 336 450 671 1269 844 Initial 844 | . . . . 50 . . . . . 844 377 288 145 84 386 . . . . . 55 171 171 245 372 706 Average 356 | . 15 . 14 44 . . . . . 753 361 343 243 441 358 . . . . 77 209 257 343 489 921 748 Influence Increases 11003 | . 75 115 275 623 70 175 . . 424 1235 731 356 176 1087 742 200 165 10 90 129 261 531 810 778 1547 398 Destroy 0b10 Robot/C 5300 | . . 100 160 300 60 120 . . 380 240 360 160 80 340 260 100 140 . 80 80 220 300 400 340 880 200 Destroy 0b10 Robot/NC 435 | . . . 55 45 . 5 . . 5 15 30 10 . 35 55 . . 10 . . . 55 35 35 30 15 Destroy Leader 864 | . . . . 90 10 20 . . 30 54 46 . . 124 82 10 10 . 10 10 20 54 72 86 106 30 Allied During Kill 958 | . . . . . . . . . 9 . 155 166 80 499 49 . . . . . . . . . . . Successful Hack 92 | . . . . . . . . . . 16 49 . . . . . . . . 5 . . 14 8 . . Disable Machine 840 | . . . 15 . . . . . . 105 60 15 15 60 60 . . . . 15 15 30 150 60 240 . Destroy Structure 1114 | . . . 45 18 . . . . . 40 31 5 1 29 206 . . . . 4 6 92 94 144 261 138 Advance Influence 800 | . . . . 50 . . . . . 750 . . . . . . . . . . . . . . . . Partial Spotted 90 | . . . . 45 . . . . . . . . . . 30 . . . . . . . . 15 . . Lose Combat Pursuer 510 | . 75 15 . 75 . 30 . . . 15 . . . . . 90 15 . . 15 . . 45 90 30 15 Influence Decreases 10241 | . 40 150 275 507 186 153 22 . 274 614 986 508 299 539 875 433 335 263 90 50 34 531 679 552 953 893 Entered New Map 3446 | . . 18 . . 44 . 22 . . 56 394 228 219 157 403 243 81 253 . . 24 135 135 192 291 551 Time Decay 5968 | . 40 132 248 497 132 143 . . 224 398 522 160 70 302 362 190 254 10 80 50 . 386 534 350 622 262 Search Patrol Dispatched 150 | . . . . . . . . . . 150 . . . . . . . . . . . . . . . . Lost Part 317 | . . . 27 10 10 10 . . 30 10 30 . 10 . 10 . . . 10 . 10 10 10 10 40 80 Lost Ally 360 | . . . . . . . . . 20 . 40 120 . 80 100 . . . . . . . . . . . Squads Dispatched 60 | . 1 . . 8 . . . . 1 5 1 . . 6 5 . 1 . . . . 5 5 6 10 6 Investigation 11 | . . . . 1 . . . . . . 1 . . 2 1 . 1 . . . . 3 . 2 . . Extermination 23 | . . . . 4 . . . . . 2 . . . 1 2 . . . . . . . 3 3 7 1 Reinforcement 19 | . 1 . . 3 . . . . . 2 . . . 3 1 . . . . . . 2 1 . 2 4 Assault 7 | . . . . . . . . . 1 1 . . . . 1 . . . . . . . 1 1 1 1 Garrison . | . . . . . . . . . . . . . . . . . . . . . . . . . . . Intercept . | . . . . . . . . . . . . . . . . . . . . . . . . . . . Searches Triggered 1 | . . . . . . . . . . 1 . . . . . . . . . . . . . . . . Construction Impeded 3 | . . . . . . . . . . . . . . . 1 . . . . . . . . . 1 1 Haulers Reinforced 2 | . . . . . . . . . . 2 . . . . . . . . . . . . . . . . Active Scanning Responses . | . . . . . . . . . . . . . . . . . . . . . . . . . . . Cargo Convoy Interrupts . | . . . . . . . . . . . . . . . . . . . . . . . . . . . Stealth | -11 -10 -10 -9 -7 -7 -7 -7 -7 -6 -6 -6 -6 -6 -6 -5 -5 -5 -5 -4 -4 -4 -3 -3 -2 -2 -2 --------- Run | Yrd Mat Sub Rec Fac Low Low Zio Dee Pro Fac Ext Cet Arc Hub Fac Upp Upp Zhi Pro Fac DSF Res Tes Res Qua Frg Distress Signals 13 | . . . . . . . . . . 1 1 2 1 . 3 . . . . . . 4 . . . 1 Communications Jammed 104 | . . . . . . . . . . 1 3 . 1 28 45 . . . . . 5 1 20 . . . Distress Signals 85 | . . . . . . . . . . 1 3 . 1 14 45 . . . . . . 1 20 . . . Times Spotted 427 | . 8 26 9 21 3 7 43 9 22 14 19 10 6 17 26 7 8 . 4 5 10 25 32 25 48 23 Peak Tracking Total 9 | . 4 3 4 3 3 3 7 5 9 2 4 5 2 4 8 9 3 . 4 4 5 6 4 4 5 9 Tactical Retreats 21 | . 2 3 . 3 . 1 1 . . 1 . . . . . 2 1 . . 1 . . 1 2 2 1 Traps | -11 -10 -10 -9 -7 -7 -7 -7 -7 -6 -6 -6 -6 -6 -6 -5 -5 -5 -5 -4 -4 -4 -3 -3 -2 -2 -2 ------- Run | Yrd Mat Sub Rec Fac Low Low Zio Dee Pro Fac Ext Cet Arc Hub Fac Upp Upp Zhi Pro Fac DSF Res Tes Res Qua Frg Traps Triggered 19 | . 1 1 . 4 . . . . . . 4 . . . 1 . . . . . 2 3 . 1 2 . Indirectly . | . . . . . . . . . . . . . . . . . . . . . . . . . . . Trap Hack Attempts . | . . . . . . . . . . . . . . . . . . . . . . . . . . . Triggered . | . . . . . . . . . . . . . . . . . . . . . . . . . . . Disarmed . | . . . . . . . . . . . . . . . . . . . . . . . . . . . Reprogrammed . | . . . . . . . . . . . . . . . . . . . . . . . . . . . Reused 1 | . . . 1 . . . . . . . . . . . . . . . . . . . . . . . Traps Extracted . | . . . . . . . . . . . . . . . . . . . . . . . . . . . Installed 1 | . . . 1 . . . . . . . . . . . . . . . . . . . . . . . Triggered . | . . . . . . . . . . . . . . . . . . . . . . . . . . . Most Traps Carried 1 | . . 1 1 . . . . . . . . . . . . . . . . . . . . . . . Machines | -11 -10 -10 -9 -7 -7 -7 -7 -7 -6 -6 -6 -6 -6 -6 -5 -5 -5 -5 -4 -4 -4 -3 -3 -2 -2 -2 ---------- Run | Yrd Mat Sub Rec Fac Low Low Zio Dee Pro Fac Ext Cet Arc Hub Fac Upp Upp Zhi Pro Fac DSF Res Tes Res Qua Frg Machines Disabled 67 | . . 5 1 . 1 . . 1 1 7 4 1 1 4 4 . 2 1 . 1 1 2 10 4 16 . Max in Single Turn 3 | . . 3 1 . 1 . . 1 1 3 1 1 . 1 3 . 1 1 . 1 1 1 2 1 3 . Machines Repaired . | . . . . . . . . . . . . . . . . . . . . . . . . . . . Machines Dismantled . | . . . . . . . . . . . . . . . . . . . . . . . . . . . Machines Sabotaged . | . . . . . . . . . . . . . . . . . . . . . . . . . . . Overloaded Fab Kills . | . . . . . . . . . . . . . . . . . . . . . . . . . . . Hacking | -11 -10 -10 -9 -7 -7 -7 -7 -7 -6 -6 -6 -6 -6 -6 -5 -5 -5 -5 -4 -4 -4 -3 -3 -2 -2 -2 --------- Run | Yrd Mat Sub Rec Fac Low Low Zio Dee Pro Fac Ext Cet Arc Hub Fac Upp Upp Zhi Pro Fac DSF Res Tes Res Qua Frg Machines Accessed 43 | . . 3 4 3 . 1 . . . 1 11 1 . 3 2 . 1 4 . 2 . 1 2 2 2 . Terminals 27 | . . . . 1 . . . . . 1 11 1 . 3 2 . 1 . . 2 . . 1 2 2 . Fabricators 1 | . . . . 1 . . . . . . . . . . . . . . . . . . . . . . Repair Stations . | . . . . . . . . . . . . . . . . . . . . . . . . . . . Recycling Units 3 | . . . 3 . . . . . . . . . . . . . . . . . . . . . . . Scanalyzers . | . . . . . . . . . . . . . . . . . . . . . . . . . . . Garrison Access 3 | . . . . 1 . . . . . . . . . . . . . . . . . 1 1 . . . Total Hacks 92 | . . 5 12 5 . 1 . . . 1 22 1 . 8 3 . 3 17 . 3 . 2 3 4 2 . Successful 49 | . . 5 6 2 . 1 . . . 1 8 . . 3 . . 3 17 . 1 . . 1 1 . . Failed 43 | . . . 6 3 . . . . . . 14 1 . 5 3 . . . . 2 . 2 2 3 2 . Catastrophic 15 | . . . 1 . . . . . . . 4 1 . 1 2 . . . . . . 1 2 1 2 . Database Lockouts . | . . . . . . . . . . . . . . . . . . . . . . . . . . . Manual 22 | . . . 2 . . . 4 . . . 3 1 . 5 . . . . . 2 . . . 4 1 . Terminals 51 | . . . . 2 . . . . . 1 22 1 . 8 3 . 3 . . 3 . . 2 4 2 . Fabricators 1 | . . . . 1 . . . . . . . . . . . . . . . . . . . . . . Repair Stations . | . . . . . . . . . . . . . . . . . . . . . . . . . . . Recycling Units 9 | . . . 9 . . . . . . . . . . . . . . . . . . . . . . . Scanalyzers . | . . . . . . . . . . . . . . . . . . . . . . . . . . . Garrison Access 5 | . . . . 2 . . . . . . . . . . . . . . . . . 2 1 . . . Terminal Hacks 43 | . . 5 3 1 . 1 . . . 1 8 . . 1 . . 3 17 . 1 . . 1 1 . . Record 12 | . . 3 1 . . . . . . . . . . . . . 3 5 . . . . . . . . Part Schematic 5 | . . . . . . . . . . . 1 . . . . . . 4 . . . . . . . . Robot Analysis 4 | . . . . . . . . . . . . . . . . . . 4 . . . . . . . . Prototype ID Bank 4 | . . . . . . . . . . . . . . . . . . 4 . . . . . . . . Open Door 7 | . . 1 . . . 1 . . . . 5 . . . . . . . . . . . . . . . Open DSF 1 | . . . . . . . . . . . . . . . . . . . . 1 . . . . . . Branch Access Points 3 | . . . . . . . . . . 1 1 . . . . . . . . . . . . 1 . . Alert Level 3 | . . . . 1 . . . . . . 1 . . 1 . . . . . . . . . . . . Zone Layout 1 | . . . . . . . . . . . . . . . . . . . . . . . 1 . . . Release Object 3 | . . 1 2 . . . . . . . . . . . . . . . . . . . . . . . Fabricator Hacks 1 | . . . . 1 . . . . . . . . . . . . . . . . . . . . . . Network Status 1 | . . . . 1 . . . . . . . . . . . . . . . . . . . . . . Repair Station Hacks . | . . . . . . . . . . . . . . . . . . . . . . . . . . . Recycling Unit Hacks 2 | . . . 2 . . . . . . . . . . . . . . . . . . . . . . . Report Inventory 1 | . . . 1 . . . . . . . . . . . . . . . . . . . . . . . Retrieve Components 1 | . . . 1 . . . . . . . . . . . . . . . . . . . . . . . Scanalyzer . | . . . . . . . . . . . . . . . . . . . . . . . . . . . Garrison Access Hacks . | . . . . . . . . . . . . . . . . . . . . . . . . . . . Unauthorized Hacks 3 | . . . 1 . . . . . . . . . . 2 . . . . . . . . . . . . Terminals 2 | . . . . . . . . . . . . . . 2 . . . . . . . . . . . . Sabotage 2 | . . . . . . . . . . . . . . 2 . . . . . . . . . . . . Fabricators . | . . . . . . . . . . . . . . . . . . . . . . . . . . . Repair Stations . | . . . . . . . . . . . . . . . . . . . . . . . . . . . Recycling Units 1 | . . . 1 . . . . . . . . . . . . . . . . . . . . . . . Mask 1 | . . . 1 . . . . . . . . . . . . . . . . . . . . . . . Scanalyzers . | . . . . . . . . . . . . . . . . . . . . . . . . . . . Garrison Access . | . . . . . . . . . . . . . . . . . . . . . . . . . . . Data Cores Recovered 1 | . . . . . . . . . . . . . . . . . . . . . . 1 . . . . Used . | . . . . . . . . . . . . . . . . . . . . . . . . . . . Hacking Detections 29 | . . . 3 3 . . . . . 1 8 2 . 2 2 . 1 . . 1 . 1 2 1 2 . Full Trace Events 6 | . . . 1 . . . . . . . 1 . . . 1 . 1 . . . . 1 . 1 . . Feedback Events . | . . . . . . . . . . . . . . . . . . . . . . . . . . . Feedback Blocked . | . . . . . . . . . . . . . . . . . . . . . . . . . . . Robot Schematics Acquired . | . . . . . . . . . . . . . . . . . . . . . . . . . . . Robots Built . | . . . . . . . . . . . . . . . . . . . . . . . . . . . Authchips . | . . . . . . . . . . . . . . . . . . . . . . . . . . . Time . | . . . . . . . . . . . . . . . . . . . . . . . . . . . Total Robot Build Rating . | . . . . . . . . . . . . . . . . . . . . . . . . . . . Part Schematics Acquired 34 | . . . . . . . . 1 3 2 6 1 2 3 7 2 . 4 . . . . . . 3 . Parts Built . | . . . . . . . . . . . . . . . . . . . . . . . . . . . Authchips . | . . . . . . . . . . . . . . . . . . . . . . . . . . . Time . | . . . . . . . . . . . . . . . . . . . . . . . . . . . Total Part Build Rating . | . . . . . . . . . . . . . . . . . . . . . . . . . . . Parts Repaired . | . . . . . . . . . . . . . . . . . . . . . . . . . . . Time . | . . . . . . . . . . . . . . . . . . . . . . . . . . . Parts Recycled . | . . . . . . . . . . . . . . . . . . . . . . . . . . . Recycled Matter . | . . . . . . . . . . . . . . . . . . . . . . . . . . . Retrieved Matter . | . . . . . . . . . . . . . . . . . . . . . . . . . . . Retrieved Components 3 | . . . 3 . . . . . . . . . . . . . . . . . . . . . . . Parts Scanalyzed . | . . . . . . . . . . . . . . . . . . . . . . . . . . . Part Schematics Acquired . | . . . . . . . . . . . . . . . . . . . . . . . . . . . Parts Damaged . | . . . . . . . . . . . . . . . . . . . . . . . . . . . Bothacking | -11 -10 -10 -9 -7 -7 -7 -7 -7 -6 -6 -6 -6 -6 -6 -5 -5 -5 -5 -4 -4 -4 -3 -3 -2 -2 -2 ------------ Run | Yrd Mat Sub Rec Fac Low Low Zio Dee Pro Fac Ext Cet Arc Hub Fac Upp Upp Zhi Pro Fac DSF Res Tes Res Qua Frg Used RIF Installer . | . . . . . . . . . . . . . . . . . . . . . . . . . . . Robots Hacked . | . . . . . . . . . . . . . . . . . . . . . . . . . . . Non-combat . | . . . . . . . . . . . . . . . . . . . . . . . . . . . Combat . | . . . . . . . . . . . . . . . . . . . . . . . . . . . Robot Hacks Applied . | . . . . . . . . . . . . . . . . . . . . . . . . . . . Relay Couplers Released 3 | . . . . . . . . . . . . . . . . . . . . . . . 3 . . . Programmers 3 | . . . . . . . . . . . . . . . . . . . . . . . 3 . . . Fabnet Peak Effective % . | . . . . . . . . . . . . . . . . . . . . . . . . . . . Robots Rewired 15 | . . . 2 . . . . . 2 . 11 . . . . . . . . . . . . . . . Allies Hacked . | . . . . . . . . . . . . . . . . . . . . . . . . . . . Hacks Repelled . | . . . . . . . . . . . . . . . . . . . . . . . . . . . Allies | -11 -10 -10 -9 -7 -7 -7 -7 -7 -6 -6 -6 -6 -6 -6 -5 -5 -5 -5 -4 -4 -4 -3 -3 -2 -2 -2 -------- Run | Yrd Mat Sub Rec Fac Low Low Zio Dee Pro Fac Ext Cet Arc Hub Fac Upp Upp Zhi Pro Fac DSF Res Tes Res Qua Frg Total Allies 27 | . . . 2 . . . . . 2 . 18 5 . . . . . . . . . . . . . . Largest Group 14 | . . . 2 . . . . . 2 . 14 14 12 11 6 . . . . . . . . . . . Highest-Rated Group 797 | . . . 24 . . . . . 40 . 538 797 677 652 366 . . . . . . . . . . . Highest-Rated Ally 159 | . . . 16 . . . . . 20 . 159 159 96 96 96 . . . . . . . . . . . Initial Warlord ECA Mod 42 | . . . . . . . . . . . . . . . . . . . . . . 9 9 8 8 8 Total Orders 6 | . . . . . . . . . . . 3 . . 3 . . . . . . . . . . . . STAY 2 | . . . . . . . . . . . 1 . . 1 . . . . . . . . . . . . FOLLOW 4 | . . . . . . . . . . . 2 . . 2 . . . . . . . . . . . . Ally Attacks 244 | . . . 1 . . . . . 3 . 37 68 23 93 19 . . . . . . . . . . . Total Damage 6428 | . . . 36 . . . . . 84 . 1015 1401 636 2647 609 . . . . . . . . . . . Kills 43 | . . . . . . . . . 1 . 7 6 5 20 4 . . . . . . . . . . . Allies Corrupted . | . . . . . . . . . . . . . . . . . . . . . . . . . . . Allies Melted . | . . . . . . . . . . . . . . . . . . . . . . . . . . . Intel | -11 -10 -10 -9 -7 -7 -7 -7 -7 -6 -6 -6 -6 -6 -6 -5 -5 -5 -5 -4 -4 -4 -3 -3 -2 -2 -2 ------- Run | Yrd Mat Sub Rec Fac Low Low Zio Dee Pro Fac Ext Cet Arc Hub Fac Upp Upp Zhi Pro Fac DSF Res Tes Res Qua Frg Active Infowar (turns) 12264 | . . . . 1544 . . . . . 801 1411 336 150 667 835 383 545 197 295 122 416 913 1418 605 1432 194 Sensors 752 | . . . . . . . . . . 640 112 . . . . . . . . . . . . . . . Terrain 992 | . . . . 423 . . . . . . . . . . . . . . . . . . . . 569 . Machine Analysis 1544 | . . . . 1544 . . . . . . . . . . . . . . . . . . . . . . Cloaking 40 | . . . . . . . . . . . . . . . . . . . . . . . . . . 40 Jamming 10151 | . . . . . . . . . . 801 1411 336 150 667 835 383 545 197 295 122 416 913 1418 605 863 194 Robot Analysis Total 4 | . . . . . . . . . . . . . . . . . . 4 . . . . . . . . Derelict Logs Recovered 13 | . . 3 . . 2 3 1 . 2 . . . . . . . . . 2 . . . . . . . Drone Launches . | . . . . . . . . . . . . . . . . . . . . . . . . . . . Drone Recoveries . | . . . . . . . . . . . . . . . . . . . . . . . . . . . Exploration | -11 -10 -10 -9 -7 -7 -7 -7 -7 -6 -6 -6 -6 -6 -6 -5 -5 -5 -5 -4 -4 -4 -3 -3 -2 -2 -2 ------------- Run | Yrd Mat Sub Rec Fac Low Low Zio Dee Pro Fac Ext Cet Arc Hub Fac Upp Upp Zhi Pro Fac DSF Res Tes Res Qua Frg Turns Passed 26853 | 33 130 3710 3145 1971 1617 1396 1214 749 646 959 1453 336 150 667 835 383 545 197 295 122 416 913 1502 782 2117 570 Spaces Moved 15720 | 40 223 1363 1034 1310 1553 919 488 487 402 524 866 256 75 426 406 256 435 157 238 88 193 572 1046 493 1702 168 Core 103 | 36 33 . 34 . . . . . . . . . . . . . . . . . . . . . . . Treads 3132 | 4 . 749 407 378 103 . 84 19 . 20 88 44 . 278 357 88 . . . . 1 288 . . 66 158 Legs 4967 | . . . 90 . 1450 537 404 468 402 504 341 212 75 148 30 . . . . . . 60 230 . 6 10 Wheels 2438 | . . 586 503 619 . 382 . . . . . . . . 19 . . . . . . 224 105 . . . Hover 3294 | . . . . . . . . . . . 437 . . . . 168 435 157 238 88 11 . . 130 1630 . Flight 1786 | . 190 28 . 313 . . . . . . . . . . . . . . . . 181 . 711 363 . . Fastest Speed 32 | 50 32 32 100 75 82 71 124 111 111 150 91 91 134 134 134 115 115 115 115 115 63 63 79 79 79 152 Average Speed 140 | 63 34 244 278 117 85 129 191 111 130 150 114 92 134 134 185 135 115 115 115 115 135 133 119 122 100 158 Slowest Speed 1160 | 160 50 660 1160 135 132 196 273 124 150 150 213 141 134 134 210 182 115 115 115 115 137 188 237 140 162 191 Overloaded Moves . | . . . . . . . . . . . . . . . . . . . . . . . . . . . Propulsion Burnouts . | . . . . . . . . . . . . . . . . . . . . . . . . . . . Robots Hopped 4 | . 4 . . . . . . . . . . . . . . . . . . . . . . . . . Potential Cave-ins . | . . . . . . . . . . . . . . . . . . . . . . . . . . . Cave-ins Triggered . | . . . . . . . . . . . . . . . . . . . . . . . . . . . Teleports 1 | . . . . . . . . . . . . . . . . . . . . . . . . . . 1 Exploration Rate (%) 51 | 4 49 74 71 22 97 94 40 63 57 16 83 66 72 39 14 44 65 60 50 2 90 22 88 14 92 9 Regions Visited 26 Branch Regions 18 Pre-discovered Areas 6 | . . 1 . . 1 . . . . . . . . . . . 1 3 . . . . . . . . Known Exits Taken 9 | . . . . 1 . 1 . . 1 1 1 . . 1 . . . . . 1 . . 1 1 . . Unknown Exits Taken 16 | 1 1 1 1 . 1 . 1 1 . . . 1 1 . 1 1 1 1 1 . . 1 . . 1 . Scrap Searched 26 | . . 5 . . 4 8 2 . 2 . . . . . . 1 3 . 1 . . . . . . . Spaces Dug 100 | . . 1 5 18 10 . . . 15 4 . . . 1 . 8 4 . . . . 9 4 9 7 5 Terrain Destroyed 942 | . . 106 110 18 35 13 4 6 58 47 27 2 . 13 97 29 29 . 18 1 3 55 57 76 88 50 Melee 39 | . . 1 5 18 10 . . . . . . . . . . . . . . . . . . . . 5 Projectile 389 | . . 1 2 . . . 4 6 11 21 27 2 . 13 32 29 29 . 18 1 3 48 57 34 20 31 AOE 514 | . . 104 103 . 25 13 . . 47 26 . . . . 65 . . . . . . 7 . 42 68 14 Terrain Rammed . | . . . . . . . . . . . . . . . . . . . . . . . . . . . Walls Destroyed . | . . . . . . . . . . . . . . . . . . . . . . . . . . . Machines Disabled . | . . . . . . . . . . . . . . . . . . . . . . . . . . . Actions | -11 -10 -10 -9 -7 -7 -7 -7 -7 -6 -6 -6 -6 -6 -6 -5 -5 -5 -5 -4 -4 -4 -3 -3 -2 -2 -2 --------- Run | Yrd Mat Sub Rec Fac Low Low Zio Dee Pro Fac Ext Cet Arc Hub Fac Upp Upp Zhi Pro Fac DSF Res Tes Res Qua Frg Total 19096 | 47 270 1581 1256 1588 1788 1105 647 667 471 604 1233 332 114 478 446 274 454 168 247 100 320 636 1203 653 2094 320 Wait 1348 | . 40 28 109 85 184 146 82 143 2 6 140 60 35 29 6 2 1 . 1 4 96 1 37 34 56 21 Move 15686 | 39 214 1362 1033 1309 1552 918 487 486 401 523 865 255 74 425 405 255 434 156 237 87 192 571 1045 492 1701 168 Hop 4 | . 4 . . . . . . . . . . . . . . . . . . . . . . . . . Pick Up 182 | 2 6 42 29 17 4 8 1 5 2 8 . 4 . 1 7 1 1 3 2 3 6 2 5 3 15 5 Fast Attach 65 | 3 2 5 5 3 1 . 1 5 1 3 . . . . . . . 2 . . . 1 8 . 20 5 Attach 91 | . 1 16 8 13 2 3 1 3 3 3 3 . . . 3 2 . 1 . 1 . 1 4 2 11 10 Detach 49 | 3 . 8 5 7 2 2 . 1 3 . 1 . . . 1 1 . . . . . . 2 . 6 7 Swap 44 | . 1 12 2 . . . . 1 1 2 2 . . 1 1 . . 1 . . 1 2 6 1 8 2 Drop 151 | . 2 13 15 7 3 7 . 10 2 7 7 . . 1 2 4 1 2 . . 7 2 11 4 32 12 Fire 1094 | . . 85 12 89 13 21 75 13 43 52 49 13 5 21 21 9 17 3 7 5 18 56 85 117 240 25 Melee 166 | . . 10 17 43 26 . . . . . . . . . . . . . . . . . . . 5 65 Ram . | . . . . . . . . . . . . . . . . . . . . . . . . . . . Kick . | . . . . . . . . . . . . . . . . . . . . . . . . . . . Crush . | . . . . . . . . . . . . . . . . . . . . . . . . . . . Escape Stasis 33 | . . . . 15 . . . . . . 18 . . . . . . . . . . . . . . . Rewire 182 | . . . 20 . 1 . . . 13 . 148 . . . . . . . . . . . . . . . Trap 1 | . . . 1 . . . . . . . . . . . . . . . . . . . . . . . Miscellaneous . | . . . . . . . . . . . . . . . . . . . . . . . . . . . Route ------- -11/Scrapyard -10/Materials (discovered 5 exits: [*Mat x2] / [*Min x2] / *Sub) -10/Subcaves (discovered 3 exits: [*Mat x2] / *Rec) -9/Recycling -7/Factory (discovered 5 exits: Fac x3 / *Low x2) -7/Lower Caves -7/Lower Caves (discovered 2 exits: *Fac / *Zio) -7/Zion (discovered 2 exits: [*Dee] / [*Pro]) -7/Deep Caves -6/Proximity Caves -6/Factory (discovered 5 exits: Fac / *Low x2 / *Ext x2) -6/Extension (discovered 2 exits: *Fac / *Cet) -6/Cetus (discovered 2 exits: *Fac / [*Arc]) -6/Archives (discovered 3 exits: *Fac / *Hub x2) -6/Hub_04(d) -5/Factory -5/Upper Caves -5/Upper Caves -5/Zhirov -4/Proximity Caves -4/Factory -4/DSF -3/Research (discovered 2 exits: *Res / *Tes) -3/Testing -2/Research (discovered 2 exits: *Qua x2) -2/Quarantine (discovered 2 exits: [*Sec] / [*Frg]) -2/Protoforge History --------- Turn | Location | Event 4 | -11/Scrapyard | Discovered new exit (range 15) 34 | -11/Scrapyard | Entered Materials 71 | -10/Materials | Discovered new exit (range 14) 82 | -10/Materials | Discovered new exit (range 8) 96 | -10/Materials | Discovered new exit (range 12) 116 | -10/Materials | Discovered new exit (range 16) 150 | -10/Materials | Discovered new exit (range 4) 164 | -10/Materials | Entered Subcaves 165 | -10/Subcaves | Approached by a straggling Scientist 228 | -10/Subcaves | Visited 4L-MR0's lab 247 | -10/Subcaves | Found Prototype Protection 408 | -10/Subcaves | Shifting Twisted Machinery released Spk. Treads 431 | -10/Subcaves | Shifting Twisted Machinery released Sub. Monowheel 472 | -10/Subcaves | Build established: Mutant 695 | -10/Subcaves | A swath of the cavern ceiling suddenly collapsed 784 | -10/Subcaves | Learned Materials terminal intel 887 | -10/Subcaves | Discovered new exit (range 11) 1029 | -10/Subcaves | Discovered new exit (range 14) 1044 | -10/Subcaves | A Subdweller sparked back to life 1044 | -10/Subcaves | A Subdweller sparked back to life 1044 | -10/Subcaves | A Subdweller sparked back to life 1099 | -10/Subcaves | Lost 3 parts (1p1n1w) 1173 | -10/Subcaves | Found Prototype Processor 1242 | -10/Subcaves | Core integrity fell below 50% 1279 | -10/Subcaves | Learned Materials terminal intel 1300 | -10/Subcaves | Shifting Twisted Machinery released Mak. Sword 1304 | -10/Subcaves | Shifting Twisted Machinery released Sub. Power Source 1717 | -10/Subcaves | Disturbed a concealed Subdweller 1769 | -10/Subcaves | Learned location of Zion (-7) 1979 | -10/Subcaves | Shifting Twisted Machinery released Sub. Laser 1981 | -10/Subcaves | Shifting Twisted Machinery released Piercing Trap 2027 | -10/Subcaves | Visited Clippyterm 2031 | -10/Subcaves | Learned 40 Factory zone layouts 2092 | -10/Subcaves | Discovered new exit (range 14) 2554 | -10/Subcaves | Build established: Hauler-Mutant 2702 | -10/Subcaves | Found SUBCON Basin 3874 | -10/Subcaves | Entered Recycling 3920 | -9/Recycling | Core integrity fell below 20% 3942 | -9/Recycling | Destroyed 8 combat bots 4431 | -9/Recycling | Scanned before Scraplab entrance 4512 | -9/Recycling | Entered Scraplab 5819 | -9/Recycling | Build established: Mutant 5839 | -9/Recycling | Angered Scraplab inhabitants 6332 | -9/Recycling | Found Prototype Device 6332 | -9/Recycling | Identified Scrap Engine 6610 | -9/Recycling | Discovered new exit (range 15) 6788 | -9/Recycling | Build established: Construct 7019 | -9/Recycling | Entered Factory 7019 | -7/Factory | Evolved 6 slots: Propulsion x2, Utility x4 7020 | -7/Factory | Identified exit to Lower Caves 7020 | -7/Factory | Identified exit to Factory 7134 | -7/Factory | Identified Gun Armor 7135 | -7/Factory | Attached Gun Armor, gained temporary slots: Weapon x2 7965 | -7/Factory | Build established: Mutant 8923 | -7/Factory | Core integrity fell below 50% 8990 | -7/Factory | Entered Lower Caves 9252 | -7/Lower Caves | Found Alien Artifact 9452 | -7/Lower Caves | Build established: Construct 9461 | -7/Lower Caves | Discovered new exit (range 7) 9461 | -7/Lower Caves | Learned location of 1 exit from Lower Caves 10237 | -7/Lower Caves | Found Alien Artifact 10237 | -7/Lower Caves | Identified Core Expander 10237 | -7/Lower Caves | Installed Core Expander, added new Weapon slot 10607 | -7/Lower Caves | Entered another Lower Caves area 10608 | -7/Lower Caves | Identified exit to Zion 10666 | -7/Lower Caves | Discovered exit to Factory (range 4) 11092 | -7/Lower Caves | Attracted the attention of an 0b10 checkpoint 11264 | -7/Lower Caves | Learned 4 Factory zone layouts 11528 | -7/Lower Caves | Encountered a Warlord checkpoint 11659 | -7/Lower Caves | Learned Factory emergency access door positions 11700 | -7/Lower Caves | Spotted B-75 Beast 11725 | -7/Lower Caves | Destroyed B-75 Beast 12003 | -7/Lower Caves | Entered Zion 12037 | -7/Zion | Learned location of 1 exit from Factory 12139 | -7/Zion | Discovered new exit (range 15) 12221 | -7/Zion | Attacked by Zionites 12519 | -7/Zion | Destroyed Imprinter 12547 | -7/Zion | Extracted access codes from Imprinter's data core 12646 | -7/Zion | Spotted RO-KM6(B) 12650 | -7/Zion | Spotted 5U-SIH(B) 12655 | -7/Zion | Destroyed RO-KM6(B) 12665 | -7/Zion | Destroyed 5U-SIH(B) 13064 | -7/Zion | Core integrity fell below 20% 13195 | -7/Zion | Opened final containment barrier to the Deep Caves 13211 | -7/Zion | Discovered new exit (range 5) 13213 | -7/Zion | Saw the warning signs outside the Deep Caves entrance 13217 | -7/Zion | Entered Deep Caves 13406 | -7/Deep Caves | Z-Facility disabled 13813 | -7/Deep Caves | Discovered new exit (range 6) 13966 | -7/Deep Caves | Entered Proximity Caves 14095 | -6/Proximity Caves | Spotter reported a threat 14131 | -6/Proximity Caves | Learned location of 1 exit from Lower Caves 14198 | -6/Proximity Caves | Attracted the attention of an 0b10 outpost 14235 | -6/Proximity Caves | Destroyed 9 combat bots 14255 | -6/Proximity Caves | Spotter reported a threat 14267 | -6/Proximity Caves | Ambushed by research squad 14308 | -6/Proximity Caves | Spotter reported a threat 14314 | -6/Proximity Caves | Destroyed 7 combat bots 14435 | -6/Proximity Caves | Spotter reported a threat 14488 | -6/Proximity Caves | Spotter reported a threat 14540 | -6/Proximity Caves | Tech Extrapolator generated special schematic: Heat Bomb Trap 14543 | -6/Proximity Caves | Learned Factory emergency access door positions 14596 | -6/Proximity Caves | Discovered exit to Factory (range 8) 14612 | -6/Proximity Caves | Entered Factory 14612 | -6/Factory | Evolved 2 slots: Power x1, Utility x1 14613 | -6/Factory | Identified exit to Lower Caves 14614 | -6/Factory | Identified exit to Factory 14655 | -6/Factory | Identified exit to Extension 14837 | -6/Factory | Tech Extrapolator generated special schematic: Deep Structural Scanner 14962 | -6/Factory | Search patrols dispatched 15312 | -6/Factory | First assault squad dispatched 15571 | -6/Factory | Entered Extension 15634 | -6/Extension | Identified exit to Cetus 15650 | -6/Extension | Rescued a captive Derelict 15959 | -6/Extension | Rescued a captive Derelict 16129 | -6/Extension | Rescued a captive Derelict 16174 | -6/Extension | Rescued a captive Derelict 16222 | -6/Extension | Build established: Commander-Construct 16406 | -6/Extension | Warlord forces began an assault 16457 | -6/Extension | Spotted B-75 Beast 16473 | -6/Extension | Destroyed B-75 Beast 16487 | -6/Extension | Spotted B-75 Beast 16517 | -6/Extension | Destroyed B-75 Beast 16623 | -6/Extension | Rescued A7 16642 | -6/Extension | Rescued a captive Derelict 16657 | -6/Extension | Rescued a captive Derelict 16958 | -6/Extension | Discovered exit to Factory (range 10) 17024 | -6/Extension | Entered Cetus 17024 | -6/Cetus | Accompanied by 14 allies (A7) 17029 | -6/Cetus | Acquired a Cetus Manufacturing Module code from A7 17036 | -6/Cetus | Spotted Cetus Guard 17036 | -6/Cetus | Spotted Cetus Guard 17039 | -6/Cetus | Spotted Cetus Guard 17045 | -6/Cetus | Allies destroyed Cetus Guard 17045 | -6/Cetus | Spotted Cetus Guard 17060 | -6/Cetus | Allies destroyed Cetus Guard 17063 | -6/Cetus | Allies destroyed Cetus Guard 17064 | -6/Cetus | Destroyed Cetus Guard 17081 | -6/Cetus | Lost 4 allies 17135 | -6/Cetus | Escorted A7 to Cetus Mainframe 17151 | -6/Cetus | Discovered new exit (range 15) 17185 | -6/Cetus | Started Cetus Manufacturing Module 17210 | -6/Cetus | Manufactured an Enhanced Grunt 17221 | -6/Cetus | Spotted Cetus Guard 17221 | -6/Cetus | Spotted Cetus Guard 17224 | -6/Cetus | Destroyed Cetus Guard 17224 | -6/Cetus | Spotted Cetus Guard 17228 | -6/Cetus | Spotted Cetus Guard 17235 | -6/Cetus | Manufactured an Enhanced Grunt 17241 | -6/Cetus | Destroyed Cetus Guard 17243 | -6/Cetus | Allies destroyed Cetus Guard 17245 | -6/Cetus | Allies destroyed Cetus Guard 17248 | -6/Cetus | Discovered exit to Factory (range 16) 17252 | -6/Cetus | Met Revision 17 17260 | -6/Cetus | Manufactured an Enhanced Grunt 17285 | -6/Cetus | Manufactured an Enhanced Grunt 17310 | -6/Cetus | Manufactured an Enhanced Grunt 17360 | -6/Cetus | Entered Archives 17360 | -6/Archives | Accompanied by 12 allies 17409 | -6/Archives | Discovered new exit (range 15) 17426 | -6/Archives | Discovered new exit (range 16) 17444 | -6/Archives | Discovered exit to Factory (range 16) 17510 | -6/Archives | Entered Hub_04(d) 17510 | -6/Hub_04(d) | Accompanied by 11 allies 17752 | -6/Hub_04(d) | Discovered exit to Factory (range 6) 18073 | -6/Hub_04(d) | Lost 5 allies 18177 | -6/Hub_04(d) | Entered Factory 18177 | -5/Factory | Accompanied by 6 allies 18177 | -5/Factory | Evolved 2 slots: Utility x1, Weapon x1 18697 | -5/Factory | Found Prototype Device 18743 | -5/Factory | Lost 5 allies 18777 | -5/Factory | First assault squad dispatched 18987 | -5/Factory | Build established: Construct 19005 | -5/Factory | Discovered new exit (range 4) 19012 | -5/Factory | Entered Upper Caves 19063 | -5/Upper Caves | Tech Extrapolator generated special schematic: Machine Rigger 19178 | -5/Upper Caves | Identified Exp. Thermal Shield 19254 | -5/Upper Caves | Discovered new exit (range 4) 19338 | -5/Upper Caves | Attracted the attention of an 0b10 outpost 19395 | -5/Upper Caves | Entered another Upper Caves area 19397 | -5/Upper Caves | Attracted the attention of an 0b10 checkpoint 19547 | -5/Upper Caves | Encountered a Warlord checkpoint 19832 | -5/Upper Caves | Learned location of Armory (-3) 19918 | -5/Upper Caves | Discovered new exit (range 14) 19940 | -5/Upper Caves | Entered Zhirov 19940 | -5/Zhirov | Discovered new exit (range 3) 19961 | -5/Zhirov | Met Zhirov 19982 | -5/Zhirov | Learned location of Quarantine (-2) 19982 | -5/Zhirov | Learned location of Testing (-3) 19982 | -5/Zhirov | Learned location of Command (-1) 19992 | -5/Zhirov | Zhirov requested help retrieving the SGEMP Prototype 20011 | -5/Zhirov | Found Alien Artifact 20012 | -5/Zhirov | Identified Integrated Reactor 20012 | -5/Zhirov | Installed Integrated Reactor, increased core energy generation (+10) 20027 | -5/Zhirov | Found Alien Artifact 20137 | -5/Zhirov | Entered Proximity Caves 20209 | -4/Proximity Caves | Learned 8 Research zone layouts 20345 | -4/Proximity Caves | Learned Research stockpile data 20409 | -4/Proximity Caves | Discovered new exit (range 14) 20432 | -4/Proximity Caves | Entered Factory 20432 | -4/Factory | Evolved 2 slots: Propulsion x1, Utility x1 20553 | -4/Factory | Identified exit to DSF 20554 | -4/Factory | Entered DSF 20593 | -4/DSF | Additional patrols routed to DSF 20673 | -4/DSF | Found Imp. Powered Armor 20681 | -4/DSF | Found Quantum Capacitor 20687 | -4/DSF | Discovered new exit (range 12) 20797 | -4/DSF | Sterilization system engaged 20817 | -4/DSF | Ambient heat levels rising (+10) 20832 | -4/DSF | Ambient heat levels rising (+10) 20847 | -4/DSF | Ambient heat levels rising (+10) 20862 | -4/DSF | Ambient heat levels rising (+10) 20877 | -4/DSF | Ambient heat levels rising (+10) 20892 | -4/DSF | Ambient heat levels rising (+10) 20907 | -4/DSF | Ambient heat levels rising (+10) 20922 | -4/DSF | Ambient heat levels rising (+10) 20937 | -4/DSF | Ambient heat levels rising (+10) 20952 | -4/DSF | Ambient heat levels rising (+10) 20967 | -4/DSF | Ambient heat levels rising (+10) 20970 | -4/DSF | Entered Research 20970 | -3/Research | Evolved 2 slots: Propulsion x1, Utility x1 20971 | -3/Research | Identified exit to Research 21170 | -3/Research | Revision forces began assault on 0b10 21209 | -3/Research | Met up with Revision 17++ 21670 | -3/Research | Research terminal network offline 21852 | -3/Research | Discovered new exit (range 15) 21873 | -3/Research | Spotted Striker 21883 | -3/Research | Entered Testing 21940 | -3/Testing | Spotted PG-36MECXTETJ 21964 | -3/Testing | Destroyed PG-36MECXTETJ 21968 | -3/Testing | Found Exp. Thermal Shield 22410 | -3/Testing | Spotted Striker 22435 | -3/Testing | Destroyed Striker 22698 | -3/Testing | System corruption reached 10% 22918 | -3/Testing | Found Prototype Device 22918 | -3/Testing | Identified Exp. Focal Shield 22956 | -3/Testing | Discovered exit to Research (range 9) 23300 | -3/Testing | Found Prototype Hackware 23301 | -3/Testing | Identified System Mapper 23383 | -3/Testing | First assault squad dispatched 23385 | -3/Testing | Entered Research 23385 | -2/Research | Evolved 2 slots: Power x1, Utility x1 23602 | -2/Research | Build established: Hacker-Construct 23944 | -2/Research | Identified exit to Quarantine 23948 | -2/Research | Found Quantum Capacitor 23988 | -2/Research | Build established: Construct 24135 | -2/Research | First assault squad dispatched 24167 | -2/Research | Entered Quarantine 24258 | -2/Quarantine | System corruption reached 10% 24537 | -2/Quarantine | Scanned by Researcher 24593 | -2/Quarantine | Destroyed 10 combat bots 25081 | -2/Quarantine | Discovered new exit (range 15) 25382 | -2/Quarantine | System corruption reached 30% 25590 | -2/Quarantine | Identified Rainbow Chip 25592 | -2/Quarantine | Attached Rainbow Chip, gained temporary slots: Power, Propulsion 25599 | -2/Quarantine | Found Alien Energy Cannon 25680 | -2/Quarantine | Found Alien Impact Weapon 25761 | -2/Quarantine | Found Alien Slashing Weapon 25761 | -2/Quarantine | Identified Sigix Broadsword 25814 | -2/Quarantine | Found Alien Artifact 25814 | -2/Quarantine | Identified Core Reset Matrix 25814 | -2/Quarantine | Identified Core Cannon 25814 | -2/Quarantine | Identified Dimensional Node Initializer 25814 | -2/Quarantine | Identified Transdimensional Reconstructor 25814 | -2/Quarantine | Identified Core Stripper 25814 | -2/Quarantine | Used Core Reset Matrix 25818 | -2/Quarantine | Detected hypermatrix surge 25818 | -2/Quarantine | Sensed 13 artifacts in vicinity 25991 | -2/Quarantine | Found Subatomic Replicator 26067 | -2/Quarantine | Spotted Fortress 26075 | -2/Quarantine | Destroyed Fortress 26087 | -2/Quarantine | Found Prototype Device 26087 | -2/Quarantine | Identified Thermal Barrier 26090 | -2/Quarantine | Found Prototype Device 26090 | -2/Quarantine | Identified Exp. EM Shield 26098 | -2/Quarantine | Found Prototype Device 26098 | -2/Quarantine | Identified Exp. Force Field 26131 | -2/Quarantine | Found Unknown Protection 26131 | -2/Quarantine | Identified Hvy. Insulated Plating 26152 | -2/Quarantine | Found Prototype Protection 26152 | -2/Quarantine | Identified Centrium Heavy Armor Plating 26167 | -2/Quarantine | First assault squad dispatched 26214 | -2/Quarantine | Build established: Alien-Mutant 26274 | -2/Quarantine | Discovered new exit (range 6) 26274 | -2/Quarantine | Discovered new exit (range 7) 26284 | -2/Quarantine | Entered Protoforge 26285 | -2/Protoforge | Sensed 2 artifacts in vicinity 26425 | -2/Protoforge | Spotted Hotshot 26425 | -2/Protoforge | Spotted Hotshot 26425 | -2/Protoforge | Spotted Hotshot 26425 | -2/Protoforge | Spotted Hotshot 26426 | -2/Protoforge | Superfortress began startup sequence 26492 | -2/Protoforge | Destroyed Hotshot 26495 | -2/Protoforge | Destroyed Hotshot 26520 | -2/Protoforge | Destroyed Hotshot 26531 | -2/Protoforge | Build established: Alien-Construct 26580 | -2/Protoforge | Destroyed Hotshot 26631 | -2/Protoforge | Spotted Overlord 26656 | -2/Protoforge | Warped through subspace 26688 | -2/Protoforge | Spotted Immortal 26700 | -2/Protoforge | Spotted Immortal 26702 | -2/Protoforge | Spotted Immortal 26730 | -2/Protoforge | Core integrity fell below 50% 26755 | -2/Protoforge | Destroyed Immortal 26764 | -2/Protoforge | Destroyed Immortal 26778 | -2/Protoforge | Found Prototype Device 26778 | -2/Protoforge | Identified Cep. Antimissile System 26784 | -2/Protoforge | First assault squad dispatched 26791 | -2/Protoforge | Found Prototype Device 26791 | -2/Protoforge | Identified Exp. Cloaking Device 26802 | -2/Protoforge | Found Prototype Piercing Weapon 26802 | -2/Protoforge | Identified Exp. Jetlance 26830 | -2/Protoforge | Core integrity fell below 20% 26843 | -2/Protoforge | Build established: Alien-Mutant 26854 | -2/Protoforge | Destroyed by Immortal with Experimental Jetlance Last Messages --------------- 26820_ Ion-Quantum Engine core remains intact and functional. 26821_ Dropped Adv. Coolant Injector. 26822_ Critical hit (Impale). 26831_ Exp. Cloaking Device destroyed. 26831_ Critical hit (Burn: +37). 26831_ Critical hit (Impale). 26839_ Immortal suffers critical hit (Impale). 26844_ Critical hit (Impale). 26844_ Centrium Heavy Armor Plating destroyed. 26846_ Critical hit (Burn: +37). 26847_ Critical hit (Impale). 26848_ 44LDSYJCHJA2E LH#P1BULWSMMT 26848_ Destroyed Prototype Processor. 26849_ Critical hit (Impale). 26852_ Scrap Engine modifies Treaded HC Exoskeleton: Time/Move -30, Support -94, -Special Renamed Thunder-HC Exoskeleton. 26854_ Critical hit (Impale). 26854_ Arm. Scrap Engine destroyed. 26854_ Scrap Engine core remains intact and functional. Map ----- +----------------------------------------------------+ | ?????????????????????????????????????????????????? | | ?????????????????????????????????????????????????? | | ?????????????????????????????????????????????????? | | ?????????????????????????????????????????????????? | | ?????????????????????????????????????????????????? | | ?????????????????????????????????????????????????? | | ?????????????????????????????????????????????????? | | ?????????????????????????????????????????????????? | | ?????????????????????????????????????????????????? | | ?????????????????????????????????????????????????? | | ?????????????????????????????????????????????????? | | ?????????????????????????????????????????????????? | | ?????????????????????????????????????????????????? | | ?????????????????????????????????????????????????? | | ?????????????????????????????????????????????????? | | ?????????????????????????????????????????????????? | | ?????????????????????????????????????????????????? | | ?????????????????????????????????????????????????? | | ????????????????????????????????#####????????????? | | ????????????????#???????######? """ ????????????? | | ???????###############??# # """ ????????????? | | ??" #??# % # """ """?????????? | | ??# #### g! + #??????? | | ??# + !!# #??????? | | ??? #l *!#??#+####+##????????? | | ??? ################ #@=!!#???????????????????? | | ??" ???????????????##+#######??????????????????? | | ??" "?????????????# #??????????????????? | | ??" # ????????????# """ +??????????????????? | | ?#" #? ??????????# """ #??????????????????? | | ?# # "??????????# """ #??????????????????? | | ? # """????????# """ #??????????????????? | | ? """""??????# """ #??????????????????? | | ? ???????# """ #??????????????????? | | ?# ? ?????# """ #??????????????????? | | ? ? ??????# #??????????????????? | | ## ???????# #??????????????????? | | # ?????????# #??????????????????? | | # # ##+#####???# #??????????????????? | | ??# #??????????????????? | | ??# #??????????????????? | | ??+ " " #??????????????????? | | % ??# "T" #??????????????????? | | ##"#"##### ##?????# """ #??????????????????? | | # ?????? #??????# #??????????????????? | | "" # ?????????????##########??????????????????? | | " # """ ????????????????????????????????????????? | | " + """ #???????????????????????????????????????? | | # """ #???????????????????????????????????????? | | #? #???????????????????????????????????????? | +----------------------------------------------------+ Best States ------------- Heat Dissipation 136 Coolant Potential 100 Energy Generation 138 Energy Capacity 1519 Matter Stores 300 Matter Capacity 300 Sight Range 16 Robot Scan Range 15 Terrain Scan Range 18 Terrain Scan Density 10 Jamming Range 16 Cloak Strength 4 Power Amplification 30 Base Temperature (-) 100 Armor Coverage 600 Resistance: KI 30 Resistance: TH 50 Weapon Shielding 33 Point Defense Rating 480 Weapon Cycling 25 Evasion (%) 63 Targeting Accuracy 8 Core Analysis 6 Recoil Reduction 5 Particle Charging 30 Offensive Hacking 20 Authchip Count 1 Item Schematics ----------------- None Robot Schematics ------------------ None Fabricated ------------ Nothing Repaired ---------- Nothing Alien Tech Used ----------------- Core Expander Integrated Reactor Sigix Broadsword Core Reset Matrix Core Cannon Core Stripper Transdimensional Reconstructor Achievements -------------- None Challenges ------------ None Game ------ Seed ExplosiveEtherialShovel Manual? 1 Play Time 03:28:47 Cumulative 321.2 hours Start 2025.06.01 @ 16:09:50 End 2025.06.07 @ 21:07:57 Sessions 9 Manual Loads 0 Difficulty Rogue Special Mode None Game No. 309 Rogue 273 Adventurer 36 Explorer 0 Win Type - Total 11 Types 4/0/7/0/0/0/0/0/0/0 Lore% 69 Gallery% 81 Achievement% 74 Wizard Run 0 Options --------- Layout 0 ASCII 0 Keyboard 0 Movement Mouse Keybinds 0 Fullscreen 1 Font 18/SmallcapsGlow Map View 76x50 Zoom Use 0% Tactical HUD 1 Map Filters NONE Filters NONE Steam 1 RUN: 5ecfd62d-10e8-4f01-a4d9-d520044330e6